bitfinex/quotes_ETHUSD_20220119
["timestamp","ask_amount","ask_price","bid_price","bid_amount"]
[1642579493230,2.50605961,3058.2,3057.9,2.5]
[1642579493432,8.20899472,3058.1,3057.9,2.5]
[1642579493739,6.5395,3058.1,3057.9,2.5]
[1642579493933,6.238,3058.1,3058.0,12.1665629]
[1642579494334,6.238,3058.1,3058.0,12.26424486]
[1642579494735,6.238,3058.1,3058.0,14.51612437]
[1642579495334,6.238,3058.1,3058.0,12.26424486]
[1642579495537,6.238,3058.1,3058.0,2.87745137]
[1642579495937,6.238,3058.1,3058.0,4.96098289]
[1642579496343,6.238,3058.1,3058.0,6.67183007]
[1642579496990,6.238,3058.1,3058.0,11.27183007]
[1642579497192,6.238,3058.1,3058.0,6.97183007]
[1642579497992,6.238,3058.1,3058.0,6.67183007]
[1642579498592,6.238,3058.1,3058.0,6.70556414]
[1642579498794,6.238,3058.1,3058.0,6.73906673]
[1642579498998,5.9399,3058.1,3058.0,10.28906673]
[1642579499495,5.9399,3058.1,3058.0,10.58906673]
[1642579499698,0.00170527,3058.3,3058.2,0.09768196]
[1642579499699,5.27e-06,3058.3,3058.2,0.09768196]
[1642579499899,0.2428,3059.5,3058.6,0.08879875]
[1642579500097,0.2428,3059.5,3058.8,0.09768196]
[1642579500297,0.00625266,3059.4,3059.0,0.09768196]
[1642579500498,0.00625266,3059.4,3059.2,0.09768196]
[1642579500731,0.2428,3059.5,3059.2,2.27278257]
[1642579500732,0.00568424,3059.3,3059.2,2.27278257]
[1642579501135,0.00568424,3059.3,3059.2,3.76550552]
[1642579501333,19.12,3061.4,3059.2,3.43578257]
[1642579501334,0.03383389,3061.3,3059.2,3.43578257]
[1642579501538,19.12,3061.4,3059.2,3.43578257]
[1642579501731,0.0073895,3060.6,3059.5,0.816956]
[1642579501931,0.0073895,3060.6,3060.3,0.09768196]
[1642579502133,0.00682108,3060.5,3060.4,5.19768196]
[1642579502535,0.00682108,3060.5,3060.4,6.39216733]
[1642579502734,0.00682108,3060.5,3060.4,1.29216733]
[1642579503135,0.00682108,3060.5,3060.3,0.09768196]
[1642579503533,3.75625265,3060.4,3060.3,0.09768196]
[1642579503933,10.59145265,3060.4,3060.3,0.09768196]
[1642579504236,6.54145265,3060.4,3060.3,0.09768196]
[1642579505678,6.54145265,3060.4,3060.3,7.32704186]
[1642579505879,6.54145265,3060.4,3060.3,9.57772042]
[1642579506278,6.54145265,3060.4,3060.3,9.87772042]
[1642579506479,6.54145265,3060.4,3060.3,9.57772042]
[1642579506680,6.54145265,3060.4,3060.3,10.04072042]
[1642579509252,6.25125265,3060.4,3060.3,10.04072042]
[1642579510352,6.25125265,3060.4,3060.3,12.54072042]
[1642579511255,6.25125265,3060.4,3060.3,16.71023149]
[1642579511655,6.25125265,3060.4,3060.3,12.54072042]
[1642579513082,0.32556804,3060.4,3060.3,12.54072042]
[1642579514283,0.02846804,3060.4,3060.3,12.54072042]
[1642579514887,6.804e-05,3060.4,3060.3,11.29004186]
[1642579515088,7.5963,3062.2,3061.0,0.09768196]
[1642579515287,3.7736,3062.2,3061.0,3.09530746]
[1642579515486,0.00625266,3061.5,3061.1,0.05566145]
[1642579515725,0.00625266,3061.5,3061.3,0.06645353]
[1642579515935,0.00568424,3061.4,3061.3,5.89030159]
[1642579516129,0.00568424,3061.4,3061.3,8.00692159]
[1642579516528,0.00568424,3061.4,3061.3,13.10692159]
[1642579517334,0.00568424,3061.4,3061.3,13.26992159]
[1642579519332,3.37468424,3063.0,3062.3,0.09768196]
[1642579519578,6.48713624,3062.9,3062.4,0.09768196]
[1642579519777,6.49566259,3062.9,3062.4,0.09768196]
[1642579519985,0.00795793,3062.8,3062.4,0.09768196]
[1642579520177,6.48713624,3062.7,3062.4,0.09768196]
[1642579520379,2.14652788,3062.6,3062.4,0.09768196]
[1642579520585,2.15334896,3062.6,3062.4,2.59768196]
[1642579520780,2.15334896,3062.6,3062.4,2.4024]
[1642579520781,7.3185678,3062.5,3062.4,2.4024]
[1642579520981,13.80570404,3062.5,3062.4,2.4024]
[1642579521181,7.3,3062.4,3060.9,0.38505709]
[1642579521485,0.3,3062.1,3060.9,0.38505709]
[1642579521684,2.07087261,3061.8,3061.0,0.0022737]
[1642579521884,2.37087261,3061.8,3061.0,0.0022737]
[1642579522083,0.00170527,3061.7,3061.0,0.0022737]
[1642579522488,0.3,3061.8,3061.0,0.0022737]
[1642579522489,0.00113685,3061.6,3061.0,0.0022737]
[1642579522984,2.21649628,3062.3,3061.0,0.0022737]
[1642579522985,0.00170527,3061.7,3061.0,0.0022737]
[1642579523436,0.85056094,3062.1,3061.0,0.0022737]
[1642579523437,0.00113685,3061.6,3061.0,0.0022737]
[1642579523836,2.09515895,3062.0,3061.0,0.0022737]
[1642579524239,0.00284212,3061.9,3061.0,0.0022737]
[1642579524439,0.00984212,3062.0,3061.1,6.1]
[1642579524738,1.67006861,3062.2,3061.1,6.1]
[1642579524937,6.48713624,3062.1,3061.2,0.00397897]
[1642579525142,6.48827308,3062.1,3061.2,0.00397897]
[1642579525741,0.816746,3062.0,3061.2,0.00397897]
[1642579526341,6.78827308,3062.1,3061.2,0.00397897]
[1642579526741,0.8167126,3062.0,3061.2,0.00397897]
[1642579526983,2.78275336,3061.9,3061.2,0.00397897]
[1642579527186,6.48713624,3061.8,3061.0,0.00511582]
[1642579529489,6.19393624,3061.8,3061.0,1.45021611]
[1642579529889,6.19393624,3061.8,3061.2,0.81667]
[1642579530088,6.19393624,3061.8,3061.2,2.86718042]
[1642579530293,6.19393624,3061.8,3061.3,0.00341054]
[1642579530491,6.19393624,3061.8,3061.5,1.3158753]
[1642579530742,6.19393624,3061.8,3061.7,7.463]
[1642579530947,0.00113684,3062.1,3061.9,0.81641]
[1642579531145,0.00113684,3062.1,3062.0,8.40004374]
[1642579531343,0.00113684,3062.1,3062.0,10.51132608]
[1642579531743,0.00113684,3062.1,3062.0,3.21132608]
[1642579532344,0.00113684,3062.1,3061.9,1.11641]
[1642579532546,0.00113684,3062.1,3061.9,0.3]
[1642579534484,0.00113684,3062.1,3061.7,2.97668605]
[1642579534485,0.00113684,3062.1,3061.7,1.34386605]
[1642579534686,2.50096372,3062.6,3061.7,0.00113685]
[1642579534888,2.82235469,3062.7,3061.8,0.00170527]
[1642579535185,2.82235469,3062.7,3061.5,3.5]
[1642579535186,6.5314,3062.5,3061.5,3.5]
[1642579535385,6.5314,3062.5,3061.2,2.78165578]
[1642579535386,6.8314,3062.5,3061.2,0.30511581]
[1642579535589,0.81834627,3062.4,3061.6,0.00284211]
[1642579535788,0.00170527,3062.4,3061.4,0.81667]
[1642579535990,1.91971663,3062.3,3061.5,0.00341054]
[1642579536391,0.00170527,3062.4,3061.5,0.00341054]
[1642579536592,0.8167069,3062.2,3061.5,0.00341054]
[1642579536791,0.84882753,3062.2,3061.5,0.00341054]
[1642579536991,0.84882753,3062.2,3061.3,2.77661666]
[1642579536992,0.84882753,3062.2,3061.3,0.00454738]
[1642579537193,1.63464715,3062.3,3061.4,0.00397896]
[1642579537392,1.63464715,3062.3,3061.2,1.11674]
[1642579537393,1.66505405,3062.3,3061.3,0.00454738]
[1642579537594,0.8167677,3062.0,3061.3,0.00454738]
[1642579537898,3.63592729,3062.0,3061.3,0.00454738]
[1642579538102,6.5314,3061.9,3061.3,0.00454738]
[1642579538333,6.5314,3061.9,3061.0,0.00625266]
[1642579538334,19.12,3061.8,3061.0,0.00625266]
[1642579538531,7.5314,3061.7,3061.0,0.00625266]
[1642579538733,19.12,3061.6,3061.0,0.00625266]
[1642579538934,6.5314,3061.5,3061.0,0.00625266]
[1642579539636,6.5314,3061.5,3061.1,2.77697037]
[1642579539637,6.237,3061.5,3061.1,2.77697037]
[1642579539835,6.237,3061.5,3061.2,1.80275777]
[1642579540037,6.237,3061.5,3061.3,2.77697037]
[1642579540235,6.237,3061.5,3061.3,2.78151775]
[1642579540436,6.237,3061.5,3061.2,2.10275777]
[1642579540437,6.237,3061.5,3061.4,2.78067273]
[1642579540638,6.237,3061.5,3061.4,0.00397896]
[1642579540836,6.237,3061.5,3061.4,0.30397896]
[1642579541038,6.237,3061.5,3061.4,2.77667747]
[1642579541237,6.237,3061.5,3061.4,2.78065643]
[1642579541435,6.237,3061.5,3061.4,3.08065643]
[1642579541837,6.237,3061.5,3061.4,2.78065643]
[1642579542081,6.237,3061.5,3061.4,2.78066422]
[1642579542281,6.237,3061.5,3061.4,0.00397896]
[1642579542686,6.237,3061.5,3061.4,2.77672036]
[1642579542888,6.237,3061.5,3061.3,2.78126774]
[1642579543087,6.237,3061.5,3061.4,0.00397896]
[1642579543487,6.237,3061.5,3061.3,0.00454738]
[1642579543688,6.237,3061.5,3061.4,2.77679616]
[1642579543989,6.237,3061.5,3061.4,2.78077512]
[1642579544894,5.9445,3061.5,3061.4,3.08077512]
[1642579545943,5.9445,3061.5,3061.4,3.24377512]
[1642579546338,5.9445,3061.5,3061.4,2.78077512]
[1642579546539,5.9445,3061.5,3061.4,3.08077512]
[1642579548143,5.9445,3061.5,3061.4,3.24377512]
[1642579548447,5.9445,3061.5,3061.4,3.08077512]
[1642579548645,6.54955765,3061.5,3061.4,3.08077512]
[1642579549244,6.54955765,3061.5,3061.4,2.78077512]
[1642579549881,6.25465765,3061.5,3061.4,2.78077512]
[1642579550784,6.25465765,3061.5,3061.4,1.14720512]
[1642579554633,6.25465765,3061.5,3061.4,0.00397896]
[1642579555039,5.95595765,3061.5,3061.4,2.1527184]
[1642579555237,5.95595765,3061.5,3061.4,2.15669736]
[1642579556141,5.95595765,3061.5,3061.4,0.16697896]
[1642579556337,5.95595765,3061.5,3061.4,2.18956569]
[1642579557294,5.95595765,3061.5,3061.4,0.16697896]
[1642579559796,5.84273789,3061.5,3061.4,4.96697896]
[1642579560197,5.54473789,3061.5,3061.4,4.96697896]
[1642579560398,6.9,3061.2,3061.1,0.21064183]
[1642579560600,0.60505765,3061.0,3060.9,0.38505709]
[1642579561044,10.94473789,3061.0,3060.9,0.38505709]
[1642579561245,0.60505765,3060.8,3060.0,1.64186949]
[1642579561647,0.81713,3060.6,3060.3,1.27899296]
[1642579561843,0.81713,3060.6,3060.2,1.64186949]
[1642579561844,0.60505765,3060.5,3060.2,1.64186949]
[1642579562041,0.60505765,3060.5,3060.4,2.60568424]
[1642579562240,0.60505765,3060.5,3060.4,2.6]
[1642579562443,0.60505765,3060.5,3060.4,2.60568424]
[1642579563043,0.60505765,3060.5,3060.4,0.00568424]
[1642579563444,2.23900765,3060.5,3060.4,0.00568424]
[1642579563644,2.23900765,3060.5,3060.3,0.00625266]
[1642579563848,2.23900765,3060.5,3060.2,0.00682108]
[1642579564050,9.53702102,3060.3,3060.2,0.00682108]
[1642579564244,0.60505765,3060.1,3059.5,1.64186949]
[1642579564506,0.60505765,3060.0,3059.7,0.00284212]
[1642579564695,0.60505765,3059.8,3059.3,1.64186949]
[1642579564899,0.60505765,3059.8,3059.2,1.64186949]
[1642579565099,0.60505765,3059.8,3059.4,0.00170527]
[1642579565100,0.60505765,3059.6,3059.4,0.00170527]
[1642579565298,0.60505765,3059.6,3059.3,0.00227369]
[1642579565299,0.30965765,3059.5,3059.3,0.00227369]
[1642579565497,0.30965765,3059.5,3058.8,2.47692771]
[1642579565498,0.60965765,3059.5,3059.2,0.00284212]
[1642579565699,0.30965765,3059.3,3058.8,1.64186949]
[1642579565898,0.30965765,3059.3,3058.5,0.00079473]
[1642579565899,0.30965765,3059.3,3058.9,0.00113685]
[1642579566299,0.30965765,3058.9,3058.5,1.64266422]
[1642579566604,0.30965765,3058.8,3058.6,0.00170527]
[1642579567000,0.30965765,3058.8,3058.6,1.64357476]
[1642579567299,0.30965765,3058.8,3058.5,0.00079473]
[1642579567300,0.30965765,3058.8,3058.7,0.00113684]
[1642579567503,0.60965765,3058.8,3058.7,0.00113684]
[1642579568099,0.60965765,3058.8,3058.0,1.64186949]
[1642579568327,0.30965765,3058.5,3057.9,1.64186949]
[1642579568529,0.30965765,3058.3,3058.1,0.00341055]
[1642579568728,0.30965765,3058.3,3057.8,1.6558506]
[1642579569132,0.30965765,3058.3,3057.9,0.00113684]
[1642579569937,4.5,3058.0,3057.4,2.47692771]
[1642579570234,4.5,3058.0,3057.5,0.0022737]
[1642579570235,0.30965765,3057.9,3057.5,0.0022737]
[1642579570433,0.3,3058.1,3057.2,2.47692771]
[1642579570636,0.81787,3057.9,3056.9,2.47692771]
[1642579570835,4.03396748,3058.0,3057.3,0.00113684]
[1642579571037,0.81955987,3057.8,3057.1,2.77940244]
[1642579571236,0.00341054,3057.9,3057.2,2.77940244]
[1642579571436,0.00227369,3057.7,3057.6,5.35614908]
[1642579571643,4.93968024,3058.2,3057.8,0.00454738]
[1642579571836,3.27155,3058.3,3057.8,0.00454738]
[1642579571837,0.00341054,3057.9,3057.8,0.00454738]
[1642579572084,6.54361054,3057.9,3057.8,0.00454738]
[1642579572279,6.54133685,3057.9,3057.8,2.78394982]
[1642579572479,6.84133685,3057.9,3057.8,2.78394982]
[1642579572881,6.54133685,3057.9,3057.8,2.78394982]
[1642579573082,3.1827,3058.7,3057.9,7.3]
[1642579573280,10.7656,3059.2,3058.0,2.93877244]
[1642579573480,0.00397896,3058.6,3058.1,2.77940244]
[1642579573684,0.00397896,3058.6,3058.5,1.82286229]
[1642579573881,1.63485,3058.7,3058.5,4.60226473]
[1642579574080,1.63485,3058.7,3058.5,1.82286229]
[1642579574284,1.63485,3058.7,3058.6,2.77878189]
[1642579574780,8.47819739,3058.7,3058.6,2.77878189]
[1642579575386,8.18589739,3058.7,3058.0,2.77878189]
[1642579575587,8.18589739,3058.7,3057.9,0.01255355]
[1642579575837,0.00397896,3058.6,3058.0,2.77877254]
[1642579576039,0.00397896,3058.6,3058.1,1.52173241]
[1642579576040,0.81761,3058.5,3058.1,1.52173241]
[1642579576238,0.82102054,3058.5,3058.2,2.77877254]
[1642579576439,0.30284211,3058.4,3058.2,4.66402922]
[1642579576639,1.93806211,3058.4,3058.3,2.77877254]
[1642579576843,1.93522,3058.4,3058.3,2.77877254]
[1642579577039,1.93522,3058.4,3058.2,2.77877254]
[1642579577441,0.00227369,3058.3,3058.2,2.77877254]
[1642579577940,0.00227369,3058.3,3058.2,5.27877254]
[1642579578141,0.00227369,3058.3,3058.2,2.77877254]
[1642579578941,0.00227369,3058.3,3058.2,7.33232806]
[1642579579145,0.00227369,3058.3,3058.2,7.49169806]
[1642579579985,0.00227369,3058.3,3058.2,9.13487481]
[1642579580185,0.00227369,3058.3,3058.2,9.13460148]
[1642579580385,0.53038369,3058.5,3058.3,6.7]
[1642579580585,0.53038369,3058.5,3058.4,5.03720903]
[1642579580785,0.53038369,3058.5,3058.4,2.77849921]
[1642579580988,0.53152054,3058.5,3058.4,2.77849921]
[1642579581186,0.53152054,3058.5,3058.0,2.77849921]
[1642579581385,0.53152054,3058.5,3058.0,4.82823036]
[1642579581687,0.53152054,3058.5,3058.1,2.77963606]
[1642579581890,0.53152054,3058.5,3058.2,4.16105497]
[1642579582086,0.53152054,3058.5,3058.4,9.4165133]
[1642579582290,0.53152054,3058.5,3058.4,12.19501251]
[1642579582887,0.53152054,3058.5,3058.4,6.09501251]
[1642579583086,0.53152054,3058.5,3058.4,8.13339962]
[1642579583339,8.17366,3058.7,3058.5,1.06304108]
[1642579583543,8.17366,3058.7,3058.6,2.77849921]
[1642579583742,8.47366,3058.7,3058.6,2.77849921]
[1642579583943,8.17479685,3058.7,3058.6,2.77849921]
[1642579584144,8.47479685,3058.7,3058.6,2.77849921]
[1642579584343,8.17479685,3058.7,3058.6,2.77849921]
[1642579584742,6.53993685,3058.7,3058.6,2.77849921]
[1642579585345,6.53993685,3058.7,3058.6,4.93791001]
[1642579585547,4.09203685,3058.7,3058.6,13.55048641]
[1642579585746,0.81725,3059.3,3059.1,1.43428303]
[1642579585945,0.81725,3059.3,3059.2,2.77849921]
[1642579586145,0.00795792,3060.1,3059.2,2.93786921]
[1642579586344,0.00795792,3060.1,3059.6,1.11179443]
[1642579586546,1.63429,3059.8,3059.7,2.77849921]
[1642579586981,1.63429,3059.8,3059.7,5.67849921]
[1642579586982,1.64054265,3059.8,3059.7,5.67849921]
[1642579587186,1.64054265,3059.8,3059.7,2.77849921]
[1642579587883,1.64054265,3059.8,3059.0,0.15937]
[1642579588088,20.76054265,3059.8,3059.1,2.7782055]
[1642579588284,20.76054265,3059.8,3059.2,2.7782055]
[1642579588285,0.30568423,3059.7,3059.2,2.7782055]
[1642579588486,0.81741,3059.6,3058.5,1.06304108]
[1642579588688,6.5371,3059.5,3058.6,2.77851624]
[1642579588886,1.6349,3059.4,3058.6,2.77851624]
[1642579589088,2.75046601,3059.2,3058.6,2.77851624]
[1642579589288,3.05046601,3059.2,3058.6,2.77851624]
[1642579589487,0.81976369,3059.1,3058.6,2.77851624]
[1642579589891,0.3,3058.9,3058.6,2.77851624]
[1642579590091,0.00170527,3059.0,3058.9,0.59999999]
[1642579590291,0.00170527,3059.0,3058.7,2.77851624]
[1642579590490,0.81753,3059.0,3058.8,2.77851624]
[1642579590747,0.51973,3059.0,3058.9,2.77851624]
[1642579590939,7.05683,3059.0,3058.9,2.77851624]
[1642579591139,7.05683,3059.0,3058.6,2.77851624]
[1642579591140,7.05853527,3059.0,3058.6,2.77851624]
[1642579591440,0.81868684,3058.9,3058.5,1.06304108]
[1642579591641,5.63528,3058.7,3058.1,0.00113685]
[1642579592141,5.63528,3058.7,3057.6,1.64317675]
[1642579592142,11.21544989,3058.7,3057.6,1.64317675]
[1642579592347,1.80603144,3058.0,3057.3,2.95534675]
[1642579592542,1.80603144,3058.0,3057.7,0.00170527]
[1642579592741,0.81783,3058.0,3057.7,0.00170527]
[1642579592941,1.63561,3058.0,3057.7,0.00170527]
[1642579593441,0.81781,3057.9,3057.3,1.80254675]
[1642579593642,0.81894685,3057.9,3057.4,0.00170527]
[1642579594484,0.81894685,3057.9,3057.5,0.15691079]
[1642579594685,0.81894685,3057.9,3057.4,0.15861606]
[1642579595084,0.81894685,3057.9,3057.5,0.00113685]
[1642579595888,0.51824685,3057.9,3057.5,0.00113685]
[1642579596488,0.51824685,3057.9,3057.7,2.45836483]
[1642579596695,6.5371,3058.8,3058.3,0.15691079]
[1642579596893,6.5371,3058.8,3058.4,0.13862194]
[1642579597089,6.5371,3058.8,3058.3,0.23116446]
[1642579597090,0.00341054,3058.5,3058.3,0.23116446]
[1642579597494,0.00284211,3058.4,3058.3,0.15691079]
[1642579597688,0.00284211,3058.4,3058.3,3.85691079]
[1642579598938,0.00284211,3058.4,3058.3,0.15691079]
[1642579599740,0.00284211,3058.4,3058.3,6.20126141]
[1642579600143,0.00284211,3058.4,3058.3,1.80126141]
[1642579600942,0.00794211,3058.5,3058.3,1.80126141]
[1642579601544,0.81742,3058.6,3058.3,1.80126141]
[1642579602892,0.81742,3058.6,3058.3,0.15691079]
[1642579603796,0.81742,3058.6,3058.3,2.6338385]
[1642579604095,0.81742,3058.6,3058.4,2.47692771]
[1642579604297,0.81742,3058.6,3058.5,0.15691079]
[1642579604497,1.11742,3058.6,3058.5,0.15691079]
[1642579604699,1.11855685,3058.6,3058.5,0.15691079]
[1642579605099,4.84464154,3058.8,3058.7,3.80691079]
[1642579605305,4.84464154,3058.8,3058.7,0.15691079]
[1642579605501,4.84577839,3058.8,3058.7,0.15691079]
[1642579605939,5.66329839,3058.8,3058.4,2.47692771]
[1642579606139,5.66329839,3058.8,3058.3,2.47692771]
[1642579606140,6.18181839,3058.8,3058.3,2.47692771]
[1642579606340,5.36429839,3058.8,3058.3,2.47692771]
[1642579606540,5.36429839,3058.8,3058.4,0.00113685]
[1642579606941,5.36429839,3058.8,3058.4,2.47806456]
[1642579607539,1.63504,3058.7,3058.4,2.47806456]
[1642579608442,1.63504,3058.7,3058.5,2.77882588]
[1642579608641,1.63504,3058.7,3058.6,2.77882588]
[1642579608842,1.63504,3058.7,3058.4,0.00113685]
[1642579608843,1.63504,3058.7,3058.4,2.77996273]
[1642579609042,4.84464154,3058.6,3058.5,2.77882588]
[1642579609242,4.84464154,3058.6,3058.0,6.25178789]
[1642579609243,4.84464154,3058.6,3058.1,2.77915798]
[1642579609487,0.81775,3058.4,3058.1,2.77915798]
[1642579609689,4.84464154,3058.3,3058.2,0.00113684]
[1642579609888,4.84464154,3058.3,3058.0,0.013215]
[1642579610288,1.64357389,3058.2,3058.0,2.49014271]
[1642579610494,1.64357389,3058.2,3057.8,2.48880513]
[1642579610691,2.45331,3058.1,3057.8,2.48880513]
[1642579610894,2.45331,3058.1,3057.9,0.00170527]
[1642579611294,2.15471,3058.1,3057.9,0.00170527]
[1642579611695,2.15471,3058.1,3057.8,0.0022737]
[1642579613002,2.97248,3058.1,3057.8,0.0022737]
[1642579613271,0.81777,3058.0,3057.8,0.0022737]
[1642579613463,0.81777,3058.0,3057.7,0.00284212]
[1642579614469,6.48030154,3057.9,3057.7,0.00284212]
[1642579614669,6.48030154,3057.9,3057.6,0.00341054]
[1642579615072,6.48030154,3057.9,3057.0,0.011]
[1642579615073,6.48030154,3057.9,3057.5,0.00397897]
[1642579615475,0.3,3057.8,3057.0,2.49980513]
[1642579615677,0.81807,3057.5,3057.0,0.011]
[1642579615871,0.81807,3057.5,3057.1,0.00170527]
[1642579616073,2.22209302,3057.2,3057.0,0.011]
[1642579616271,4.84464154,3057.1,3057.0,0.011]
[1642579616472,4.54584154,3057.1,3057.0,0.011]
[1642579617898,4.54584154,3057.1,3056.8,1.6574582]
[1642579618103,0.81811,3057.0,3056.7,1.6574582]
[1642579618306,2.4543,3057.0,3056.9,0.00113685]
[1642579618504,2.4543,3057.0,3056.8,1.6574582]
[1642579618705,2.4543,3057.0,3056.7,1.6574582]
[1642579619105,2.33402019,3056.9,3056.5,1.6574582]
[1642579619306,5.60673019,3056.9,3056.5,1.6574582]
[1642579619505,5.60673019,3056.9,3056.6,0.00170527]
[1642579619506,0.81816,3056.8,3056.6,0.00170527]
[1642579619703,4.36816,3056.8,3056.5,1.6574582]
[1642579619903,4.36816,3056.8,3056.4,1.6574582]
[1642579620103,1.6363621,3056.8,3056.3,1.6574582]
[1642579620306,2.45461,3056.7,3056.3,1.6574582]
[1642579620506,2.45461,3056.7,3056.4,0.00113684]
[1642579620507,0.81819,3056.6,3056.4,0.00113684]
[1642579621175,0.81819,3056.6,3056.3,0.00170527]
[1642579621475,1.63638,3056.6,3056.2,1.65973189]
[1642579621677,2.158694,3056.6,3056.3,0.00170527]
[1642579621873,2.158694,3056.6,3056.2,1.6574582]
[1642579622079,0.00113685,3056.5,3056.1,1.6574582]
[1642579622276,2.45454,3056.4,3056.1,1.6574582]
[1642579622476,0.00113685,3056.5,3056.4,1.99406596]
[1642579622676,0.00113685,3056.5,3056.1,1.6574582]
[1642579623480,0.00113685,3056.5,3056.0,1.6574582]
[1642579623777,0.00113685,3056.5,3056.1,0.00113685]
[1642579624502,2.4545,3056.4,3056.1,1.65859505]
[1642579624693,2.4545,3056.4,3056.1,0.00113685]
[1642579624898,2.4545,3056.4,3056.1,1.65859505]
[1642579625097,2.4545,3056.4,3056.1,0.00113685]
[1642579625499,2.4545,3056.4,3056.1,1.08846703]
[1642579625900,2.4545,3056.4,3056.2,1.6574582]
[1642579626299,2.4545,3056.4,3056.1,2.74592523]
[1642579626499,2.4545,3056.4,3056.2,1.6574582]
[1642579626699,2.4545,3056.4,3056.1,2.74592523]
[1642579626700,2.1585,3056.4,3056.1,2.74592523]
[1642579627902,2.1585,3056.4,3056.2,2.4754382]
[1642579628102,0.00113685,3056.5,3056.2,2.4754382]
[1642579628348,0.00113685,3056.5,3056.2,1.6574582]
[1642579629147,0.00113685,3056.5,3056.3,1.6574582]
[1642579629749,0.00113685,3056.5,3056.4,2.78040807]
[1642579629956,0.00113685,3056.5,3056.4,9.03977807]
[1642579630151,4.54584154,3056.8,3056.5,7.3033737]
[1642579630350,4.54584154,3056.8,3056.6,2.85619374]
[1642579630549,4.54584154,3056.8,3056.7,10.08040807]
[1642579630752,4.54584154,3056.8,3056.7,10.23977807]
[1642579630952,4.54754681,3056.8,3056.7,12.51203184]
[1642579631150,4.54754681,3056.8,3056.7,15.00083697]
[1642579631550,6.7958,3057.9,3057.8,1.4949403]
[1642579631751,1.63534,3058.0,3057.8,1.4949403]
[1642579632003,0.835656,3058.4,3057.9,2.78040807]
[1642579632206,6.5399,3058.3,3057.4,0.0129456]
[1642579632404,8.61778379,3058.3,3057.5,2.77984783]
[1642579633007,8.91778379,3058.3,3057.5,2.77984783]
[1642579633206,1.63536,3058.1,3057.5,2.77984783]
[1642579633607,0.00682108,3058.0,3057.5,2.77984783]
[1642579633810,0.81776,3057.9,3057.6,2.77984783]
[1642579634013,0.81776,3057.9,3057.7,2.77984783]
[1642579634014,0.82401266,3057.9,3057.7,2.77984783]
[1642579634211,0.00568423,3057.8,3057.3,1.4801931]
[1642579634410,0.00568423,3057.8,3057.1,2.12345579]
[1642579634609,0.00511581,3057.7,3057.1,2.09533705]
[1642579634810,0.00511581,3057.7,3056.9,3.9056726]
[1642579634811,0.81782,3057.6,3056.9,3.9056726]
[1642579635111,0.00397896,3057.5,3057.1,2.11980267]
[1642579635513,0.00341054,3057.4,3057.2,1.41345686]
[1642579635946,0.00284212,3057.3,3057.2,1.41345686]
[1642579636150,0.00284212,3057.3,3057.1,1.65111364]
[1642579636351,0.00454739,3057.3,3057.0,1.65111364]
[1642579636554,0.00227369,3057.2,3057.0,1.65111364]
[1642579636751,0.00227369,3057.2,3056.9,2.15707027]
[1642579636752,0.00227369,3057.2,3056.9,3.80818391]
[1642579636951,1.33863527,3057.7,3057.0,5.9]
[1642579637153,1.33863527,3057.7,3057.1,3.76289114]
[1642579637352,0.82064212,3057.6,3057.1,2.1117775]
[1642579637650,0.00227369,3057.5,3057.1,3.76289114]
[1642579638051,0.00170527,3057.4,3057.1,3.76289114]
[1642579638251,1.33863527,3057.7,3057.4,0.00341054]
[1642579638652,0.00113685,3057.6,3057.4,0.00341054]
[1642579639497,0.81892685,3057.6,3057.4,0.00341054]
[1642579640902,6.5399,3057.5,3057.4,0.00341054]
[1642579642004,6.2499,3057.5,3057.4,0.00341054]
[1642579642806,6.2499,3057.5,3057.2,1.65225049]
[1642579643472,6.2499,3057.5,3057.2,0.00113685]
[1642579643875,6.2499,3057.5,3057.1,0.00170527]
[1642579644278,1.90473158,3057.3,3057.0,1.65338733]
[1642579644481,1.90473158,3057.3,3057.1,1.65338733]
[1642579644880,1.90473158,3057.3,3057.2,0.00113685]
[1642579645080,0.81782,3057.4,3057.2,0.27722813]
[1642579645280,0.81782,3057.4,3057.3,0.27609128]
[1642579646284,6.2499,3057.5,3057.3,0.27609128]
[1642579647102,5.9538,3057.5,3057.3,0.27609128]
[1642579648098,6.2538,3057.5,3057.3,0.27609128]
[1642579648504,5.9538,3057.5,3057.3,1.92720492]
[1642579648806,5.9538,3057.5,3057.4,5.02720492]
[1642579649007,5.9538,3057.5,3057.4,5.86489641]
[1642579649205,5.9538,3057.5,3057.4,12.0885454]
[1642579649403,0.02421574,3057.5,3057.4,12.91044797]
[1642579649606,0.02421574,3057.5,3057.4,13.06981797]
[1642579650408,0.02421574,3057.5,3057.4,13.88748797]
[1642579650604,0.00113685,3057.6,3057.5,7.57609128]
[1642579650853,0.00113685,3057.6,3057.5,10.35563522]
[1642579652052,0.01910285,3057.6,3057.5,10.35563522]
[1642579652256,3.9593,3058.6,3057.7,0.27609128]
[1642579652257,3.67860285,3058.6,3057.7,0.27609128]
[1642579652454,3.68399265,3058.6,3058.3,0.27609128]
[1642579652655,0.00511581,3058.5,3058.4,8.15563522]
[1642579652858,0.00511581,3058.5,3058.4,9.81211626]
[1642579653055,0.00511581,3058.5,3058.4,10.51500522]
[1642579653255,3.789,3059.8,3059.4,0.27609128]
[1642579653556,1.77092266,3059.9,3059.4,2.77609128]
[1642579653755,1.77092266,3059.9,3059.4,3.05563522]
[1642579654256,0.81721,3059.7,3059.4,3.05563522]
[1642579654529,1.6345,3059.7,3059.4,3.05563522]
[1642579655125,0.3,3059.6,3059.4,3.05563522]
[1642579656224,0.3,3059.6,3059.4,0.27609128]
[1642579658449,0.3,3059.6,3059.5,0.27609128]
[1642579658651,6.8369,3059.6,3059.5,0.27609128]
[1642579658950,6.84315266,3059.6,3059.5,0.27609128]
[1642579660555,8.89597723,3059.6,3059.5,0.27609128]
[1642579662605,8.59937723,3059.6,3059.5,0.27609128]
[1642579662799,8.59597723,3059.6,3059.5,0.27609128]
[1642579664400,8.89597723,3059.6,3059.5,0.27609128]
[1642579664600,6.84315266,3059.6,3059.5,0.27609128]
[1642579665967,9.05505242,3059.6,3059.5,0.27609128]
[1642579666970,8.75505242,3059.6,3059.5,0.27609128]
[1642579667671,8.46195242,3059.6,3059.5,0.27609128]
[1642579668269,8.76195242,3059.6,3059.5,0.27609128]
[1642579670805,8.76195242,3059.6,3058.7,0.02970441]
[1642579670806,7.3,3059.5,3058.7,0.02970441]
[1642579671005,1.63504,3059.4,3058.8,2.77905634]
[1642579671203,7.88395581,3059.4,3058.8,2.77905634]
[1642579671405,0.00454739,3059.3,3058.8,2.77905634]
[1642579671604,6.2438,3059.2,3058.8,2.77905634]
[1642579671804,6.24777896,3059.2,3058.8,2.77905634]